lending/lending_fUSD_20260124
["ID","MTS","AMOUNT","RATE_DAILY","PERIOD"]
[403169805,1769239379231,-1978.54743494,0.00012988,2]
[403169806,1769239379323,-391.68884759,0.00012988,2]
[403169807,1769239379377,-2062.43252042,0.00012988,2]
[403169808,1769239379425,-3588.79376211,0.00012988,2]
[403169809,1769239379436,-1476.14886166,0.00012988,2]
[403169810,1769239379447,-810.20233539,0.00012988,2]
[403169811,1769239379497,-1117.33646461,0.00012988,2]
[403169812,1769239380041,-1000.0,0.00012988,2]
[403169813,1769239380088,-2500.0,0.00012988,2]
[403169814,1769239380110,-4315.8315,0.00012988,2]
[403169815,1769239380119,-77.56831792,0.00013,2]
[403169816,1769239380177,-72.43168208,0.00013,2]
[403169817,1769239380187,-150.0,0.00013,2]
[403169818,1769239380197,-174.65,0.00013,2]
[403169819,1769239380206,-484.52,0.00013,2]
[403169820,1769239380216,-150.0,0.00013,2]
[403169821,1769239380226,-150.0,0.00013,2]
[403169822,1769239380235,-150.0,0.00013,2]
[403169823,1769239380245,-484.52,0.00013,2]
[403169824,1769239380254,-150.0,0.00013,2]
[403169825,1769239380263,-150.0,0.00013,2]
[403169826,1769239380272,-179.89,0.00013,2]
[403169827,1769239380283,-150.0,0.00013,2]
[403169828,1769239380292,-150.0,0.00013,2]
[403169829,1769239380302,-494.23,0.00013,2]
[403169830,1769239380311,-937.06,0.00013,2]
[403169831,1769239380320,-500.0,0.00013,2]
[403169832,1769239380330,-612.72,0.00013,2]
[403169833,1769239380339,-484.52,0.00013,2]
[403169834,1769239380348,-818.0,0.00013034,2]
[403169835,1769239380358,-169.0,0.00013034,2]
[403169836,1769239380368,-1409.92088298,0.00013041,2]
[403169837,1769239380629,-285.0,0.0001294,2]
[403169838,1769239380688,-66.22797867,0.00013041,2]
[403169839,1769239380755,-500.0,0.00013081,2]
[403169840,1769239380821,-854.2589148,0.00013081,2]
[403169841,1769239380879,-500.0,0.00013081,2]
[403169842,1769239380939,-500.0,0.00013081,2]
[403169843,1769239380995,-151.0,0.00013081,2]
[403169844,1769239381054,-500.0,0.00013081,2]
[403169845,1769239381112,-151.0,0.00013081,2]
[403169846,1769239381170,-151.0,0.00013081,2]
[403169847,1769239381227,-151.0,0.00013081,2]
[403169848,1769239381282,-151.0,0.00013081,2]
[403169849,1769239381338,-151.0,0.00013081,2]
[403169850,1769239381392,-151.0,0.00013081,2]
[403169851,1769239381447,-151.0,0.00013081,2]
[403169852,1769239381506,-151.0,0.00013081,2]
[403169853,1769239381565,-151.0,0.00013081,2]
[403169854,1769239381620,-151.0,0.00013081,2]
[403169855,1769239381676,-116.03621306,0.00013081,2]
[403169856,1769239381912,-34.96378694,0.00013081,2]
[403169857,1769239381972,-151.0,0.00013081,2]
[403169858,1769239382031,-151.0,0.00013081,2]
[403169859,1769239382093,-151.0,0.00013081,2]
[403169860,1769239382156,-151.0,0.00013081,2]
[403169861,1769239382221,-151.0,0.00013081,2]
[403169862,1769239382282,-151.0,0.00013081,2]
[403169863,1769239382344,-151.0,0.00013081,2]
[403169864,1769239382407,-151.0,0.00013081,2]
[403169865,1769239382467,-200.0,0.00013081,2]
[403169866,1769239382528,-151.0,0.00013081,2]
[403169867,1769239382592,-151.0,0.00013081,2]
[403169868,1769239382651,-500.0,0.00013081,2]
[403169869,1769239382711,-500.0,0.00013081,2]
[403169870,1769239382774,-500.0,0.00013081,2]
[403169871,1769239382837,-500.0,0.00013081,2]
[403169872,1769239382895,-500.0,0.00013081,2]
[403169873,1769239382951,-500.0,0.00013081,2]
[403169874,1769239384762,-83.96378694,0.00013081,2]
[403169875,1769239384816,-510.08242612,0.00013081,2]
[403169876,1769239385096,-27.73758156,0.00013081,2]
[403169877,1769239385158,-250.0,0.00013081,2]
[403169878,1769239385222,-500.0,0.00013081,2]
[403169879,1769239385286,-250.0,0.00013081,2]
[403169880,1769239385347,-500.0,0.00013081,2]
[403169881,1769239385408,-250.0,0.00013081,2]
[403169882,1769239385468,-500.0,0.00013081,2]
[403169883,1769239385741,-250.0,0.00013081,2]
[403169884,1769239385804,-500.0,0.00013081,2]
[403169885,1769239385865,-500.0,0.00013081,2]
[403169886,1769239385928,-500.0,0.00013081,2]
[403169887,1769239385986,-500.0,0.00013081,2]
[403169888,1769239386046,-444.53483688,0.00013081,2]
[403169889,1769239386215,-55.46516312,0.00013081,2]
[403169890,1769239386273,-500.0,0.00013081,2]
[403169891,1769239386330,-500.0,0.00013081,2]
[403169892,1769239386389,-500.0,0.00013081,2]
[403169893,1769239386448,-500.0,0.00013081,2]
[403169894,1769239386506,-500.0,0.00013081,2]
[403169895,1769239386566,-500.0,0.00013081,2]
[403169896,1769239386625,-500.0,0.00013081,2]
[403169897,1769239386684,-500.0,0.00013081,2]
[403169898,1769239386741,-743.50770149,0.00013081,2]
[403169899,1769239388758,-55.46516312,0.00013081,2]
[403169900,1769239388813,-402.06427078,0.00013081,2]
[403169901,1769239411145,-169.88456738,0.00012267,2]
[403169902,1769239414023,-322.08885429,0.00012267,2]
[403169903,1769239416842,-180.14659574,0.00012267,2]
[403169904,1769239419578,-202.72394855,0.00012267,2]
[403169905,1769239421550,-177.57814651,0.00012267,2]
[403169906,1769239423729,-405.0,0.00012267,2]
[403169907,1769239425151,-410.43469677,0.00012267,2]
[403169908,1769239427334,-280.18204348,0.00012267,2]
[403169909,1769239429479,-186.5865895,0.00012267,2]
[403169910,1769239431154,-385.83173004,0.00012267,2]
[403169911,1769239433357,-222.84735836,0.00012267,2]
[403169912,1769239435868,-3503.19546938,0.00012267,2]
[403169913,1769239435931,-492.04962055,0.00013007,2]
[403169914,1769239435988,-257.43,0.00013019,2]
[403169915,1769239436042,-492.04962055,0.0001305,2]
[403169916,1769239436101,-42.4705661,0.00013081,2]
[403169917,1769239436413,-500.0,0.00013081,2]
[403169918,1769239436479,-500.0,0.00013081,2]
[403169919,1769239436538,-500.0,0.00013081,2]
[403169920,1769239436601,-500.0,0.00013081,2]
[403169921,1769239436664,-500.0,0.00013081,2]
[403169922,1769239436721,-500.0,0.00013081,2]
[403169923,1769239436777,-500.0,0.00013081,2]
[403169924,1769239436834,-500.0,0.00013081,2]
[403169925,1769239437254,-425.61944684,0.00013081,2]
[403169926,1769239437298,-2000.01,0.00013081,2]
[403169927,1769239437340,-10000.01,0.00013081,2]
[403169928,1769239438744,-2943.304531,0.00012942,2]
[403169929,1769239438838,-4113.400938,0.00013081,2]
[403169930,1769239438948,-10000.01,0.00013081,2]
[403169931,1769239447412,172.0,6.2e-07,2]
[403169932,1769239448272,5790.0176,7.945e-05,2]
[403169933,1769239473087,-1000.0,0.00012988,2]
[403169934,1769239473142,-151.0,0.00013078,2]
[403169935,1769239473204,-150.0,0.0001308,2]
[403169936,1769239473260,-300.0,0.0001308,2]
[403169937,1769239473660,-6798.01,0.00013081,2]
[403169938,1769239473722,-10000.01,0.00013081,2]
[403169939,1769239473769,-10000.01,0.00013081,2]
[403169940,1769239484504,-10000.01,0.00012749,2]
[403169941,1769239484716,-10000.01,0.00012749,2]
[403169942,1769239484879,-10000.01,0.00012749,2]
[403169943,1769239486110,-231.04,0.00012749,2]
[403169944,1769239525148,1028.37667125,0.000108,2]
[403169945,1769239535270,5000.0,0.0001,2]
[403169946,1769239559508,12333.03823193,8e-05,2]
[403169947,1769239580706,-500.0,0.00012442,2]
[403169948,1769239580784,-500.0,0.00012442,2]
[403169949,1769239580858,-500.0,0.00012442,2]
[403169950,1769239580931,-500.0,0.00012442,2]
[403169951,1769239581007,-500.0,0.00012442,2]
[403169952,1769239581083,-500.0,0.00012442,2]
[403169953,1769239581157,-500.0,0.00012442,2]
[403169954,1769239581226,-374.92618779,0.00012444,2]
[403169955,1769239581292,-167.65,0.0001261,2]
[403169956,1769239581357,-395.67304188,0.00012649,2]
[403169957,1769239581423,-395.67304186,0.00012741,2]
[403169958,1769239581492,-32.16545694,0.00012748,2]
[403169959,1769239581947,-500.0,0.00012442,2]
[403169960,1769239582019,-500.0,0.00012442,2]
[403169961,1769239582083,-501.63601776,0.00012442,2]
[403169962,1769239582153,-500.0,0.00012442,2]
[403169963,1769239582228,-500.0,0.00012442,2]
[403169964,1769239582298,-500.0,0.00012442,2]
[403169965,1769239582369,-500.0,0.00012442,2]
[403169966,1769239582438,-500.0,0.00012442,2]
[403169967,1769239582511,-500.0,0.00012442,2]
[403169968,1769239582577,-267.83454306,0.00012748,2]
[403169969,1769239584657,-267.83454306,0.00012442,2]
[403169970,1769239584711,-232.16545694,0.00012442,2]
[403169971,1769239584721,-228.90342142,0.00012442,2]
[403169972,1769239584860,-271.09657858,0.00012442,2]
[403169973,1769239584925,-500.0,0.00012442,2]
[403169974,1769239584991,-500.0,0.00012442,2]
[403169975,1769239585056,-500.0,0.00012442,2]
[403169976,1769239585119,-500.0,0.00012442,2]
[403169977,1769239585181,-500.0,0.00012442,2]
[403169978,1769239585248,-500.0,0.00012442,2]
[403169979,1769239585312,-500.0,0.00012442,2]
[403169980,1769239585376,-500.0,0.00012442,2]
[403169981,1769239585436,-500.0,0.00012442,2]
[403169982,1769239585531,-500.0,0.00012442,2]
[403169983,1769239585595,-500.0,0.00012442,2]
[403169984,1769239585659,-500.0,0.00012442,2]
[403169985,1769239585721,-500.0,0.00012442,2]
[403169986,1769239585786,-500.0,0.00012442,2]
[403169987,1769239585849,-500.0,0.00012442,2]
[403169988,1769239585914,-500.0,0.00012442,2]
[403169989,1769239585981,-500.0,0.00012442,2]
[403169990,1769239586048,-500.0,0.00012442,2]
[403169991,1769239586115,-500.0,0.00012442,2]
[403169992,1769239587312,-500.0,0.00012442,2]
[403169993,1769239587366,-0.01,0.00012442,2]
[403169994,1769239587462,-499.99,0.00012442,2]
[403169995,1769239587537,-500.0,0.00012442,2]
[403169996,1769239587620,-272.20036696,0.00012442,2]
[403169997,1769239587693,-500.0,0.00012442,2]
[403169998,1769239587762,-500.0,0.00012442,2]
[403169999,1769239587830,-500.0,0.00012442,2]
[403170000,1769239587901,-500.0,0.00012442,2]
[403170001,1769239587965,-500.0,0.00012442,2]
[403170002,1769239588027,-1200.0,0.00012748,2]
[403170003,1769239588556,-55.62926608,0.00012748,2]
[403170004,1769239590188,-244.37073392,0.00012748,2]
[403170005,1769239590333,-9511.26853216,0.00012749,2]
[403170006,1769239590376,-10000.01,0.00012749,2]
[403170007,1769239606576,-305.20281656,0.00012379,2]
[403170008,1769239621066,-241.77798744,0.00012379,2]
[403170009,1769239621094,-51.73001688,0.00012749,2]
[403170010,1769239627551,5000.0,0.000127,4]
[403170011,1769239629611,10000.0,0.000128,4]
[403170012,1769239631857,7921.5393183,0.000129,4]
[403170013,1769239631885,7078.4606817,0.000129,4]
[403170014,1769239637951,-236.8865675,0.00012748,2]
[403170015,1769239644907,-63.1134325,0.00012748,2]
[403170016,1769239644971,-300.0,0.00012748,2]
[403170017,1769239645154,-9273.783135,0.00012749,2]
[403170018,1769239645823,-10000.01,0.00012749,2]
[403170019,1769239646026,-10000.01,0.00012749,2]
[403170020,1769239646216,-10000.01,0.00012749,2]
[403170021,1769239646425,-132.35661596,0.00012749,2]
[403170022,1769239646484,-395.67304186,0.00012832,2]
[403170023,1769239646547,-311.0,0.00012932,2]
[403170024,1769239646615,-500.0,0.00012932,2]
[403170025,1769239646672,-500.0,0.00012932,2]
[403170026,1769239646729,-150.0,0.0001298,2]
[403170027,1769239647017,-1193.42242811,0.00012981,2]
[403170028,1769239647174,-4828.52825625,0.00012981,2]
[403170029,1769239647246,-2784.63688753,0.00012981,2]
[403170030,1769239647339,-5764.51134921,0.00012981,2]
[403170031,1769239647349,-257.43933515,0.00012988,2]
[403170032,1769239647416,-2242.56066485,0.00012988,2]
[403170033,1769239647479,-306.1877,0.00012988,2]
[403170034,1769239647541,-1000.0,0.00012988,2]
[403170035,1769239647603,-492.04962055,0.00013004,2]
[403170036,1769239647800,-3174.57512707,0.0001305,2]
[403170037,1769239647855,-649.85147704,0.0001305,2]
[403170038,1769239647865,-151.0,0.00013078,2]
[403170039,1769239647875,-151.0,0.00013078,2]
[403170040,1769239647889,-322.6107,0.00013081,2]
[403170041,1769239647899,-500.0,0.00013081,2]
[403170042,1769239647908,-468.09848781,0.00013081,2]
[403170043,1769239647971,-31.90151219,0.00013081,2]
[403170044,1769239647982,-151.0,0.00013081,2]
[403170045,1769239647996,-123.28618781,0.00013081,2]
[403170046,1769239648063,-376.71381219,0.00013081,2]
[403170047,1769239648073,-500.0,0.00013081,2]
[403170048,1769239648452,-123.28618781,0.00013081,2]
[403170049,1769239648505,-376.71381219,0.00013081,2]
[403170050,1769239648515,-115.33580836,0.00013081,2]
[403170051,1769239648558,-384.66419164,0.00013081,2]
[403170052,1769239648567,-500.0,0.00013081,2]
[403170053,1769239648576,-500.0,0.00013081,2]
[403170054,1769239648586,-500.0,0.00013081,2]
[403170055,1769239648594,-33.74983756,0.00013081,2]
[403170056,1769239648702,-466.25016244,0.00013081,2]
[403170057,1769239648761,-500.0,0.00013081,2]
[403170058,1769239648817,-530.47478431,0.00013081,2]
[403170059,1769239648874,-500.0,0.00013081,2]
[403170060,1769239648936,-500.0,0.00013081,2]
[403170061,1769239648993,-500.0,0.00013081,2]
[403170062,1769239649049,-500.0,0.00013081,2]
[403170063,1769239649107,-447.59813902,0.00013081,2]
[403170064,1769239649162,-721.12765535,0.00013081,2]
[403170065,1769239649223,-174.61919141,0.00013081,2]
[403170066,1769239649280,-119.87013494,0.00013081,2]
[403170067,1769239649412,-80.12986506,0.00013081,2]
[403170068,1769239649471,-500.0,0.00013081,2]
[403170069,1769239649536,-500.0,0.00013081,2]
[403170070,1769239649598,-446.58454531,0.00013081,2]
[403170071,1769239649662,-500.0,0.00013081,2]
[403170072,1769239649724,-500.0,0.00013081,2]
[403170073,1769239649785,-854.2589148,0.00013081,2]
[403170074,1769239649845,-500.0,0.00013081,2]
[403170075,1769239649903,-500.0,0.00013081,2]
[403170076,1769239651194,-80.12986506,0.00013081,2]
[403170077,1769239651243,-419.87013494,0.00013081,2]
[403170078,1769239651253,-500.0,0.00013081,2]
[403170079,1769239651262,-318.19321472,0.00013081,2]
[403170080,1769239651437,-181.80678528,0.00013081,2]
[403170081,1769239651494,-500.0,0.00013081,2]
[403170082,1769239651551,-500.0,0.00013081,2]
[403170083,1769239651607,-500.0,0.00013081,2]
[403170084,1769239651664,-500.0,0.00013081,2]
[403170085,1769239651758,-500.0,0.00013081,2]
[403170086,1769239651977,-500.0,0.00013081,2]
[403170087,1769239652251,-4636.39642944,0.00013081,2]
[403170088,1769239652299,-500.0,0.00013081,2]
[403170089,1769239652356,-9000.01,0.00013081,2]
[403170090,1769239652403,-10000.01,0.00013081,2]
[403170091,1769239652451,-10000.01,0.00013081,2]
[403170092,1769239652503,-500.0,0.00013081,2]
[403170093,1769239652554,-9000.01,0.00013081,2]
[403170094,1769239711087,-165.64325754,0.00012748,2]
[403170095,1769239726022,-250.76580485,0.00012215,2]
[403170096,1769239761165,-82.52419515,0.00012215,2]
[403170097,1769239761221,-454.1716,0.00012648,2]
[403170098,1769239761276,-491.53929173,0.00012747,2]
[403170099,1769239761351,-333.29,0.00012893,2]
[403170100,1769239761411,-3297.0226,0.00012981,2]
[403170101,1769239761469,-13.81390612,0.00013004,2]
[403170102,1769239761798,-655.286814,0.00012828,2]
[403170103,1769239761877,-10000.01,0.00012828,2]
[403170104,1769239761949,-296.719636,0.00012828,2]
[403170105,1769239762013,-655.286814,0.00013004,2]
[403170106,1769239762072,-151.0,0.00013078,2]
[403170107,1769239762139,-505.55510917,0.0001308,2]
[403170108,1769239762208,-500.0,0.0001308,2]
[403170109,1769239762269,-567.18943123,0.0001308,2]
[403170110,1769239762329,-232.95286695,0.0001308,2]
[403170111,1769239762398,-500.0,0.0001308,2]
[403170112,1769239762460,-500.0,0.0001308,2]
[403170113,1769239762520,-604.80160533,0.0001308,2]
[403170114,1769239762584,-472.99907464,0.00013081,2]
[403170115,1769239762727,-27.00092536,0.00013081,2]
[403170116,1769239762737,-500.0,0.00013081,2]
[403170117,1769239762750,-500.0,0.00013081,2]
[403170118,1769239762760,-500.0,0.00013081,2]
[403170119,1769239762769,-500.0,0.00013081,2]
[403170120,1769239762779,-175.64541372,0.00013081,2]
[403170121,1769239762788,-151.0,0.00013081,2]
[403170122,1769239762798,-151.0,0.00013081,2]
[403170123,1769239762808,-151.0,0.00013081,2]
[403170124,1769239762818,-151.0,0.00013081,2]
[403170125,1769239762830,-250.0,0.00013081,2]
[403170126,1769239762840,-151.0,0.00013081,2]
[403170127,1769239762849,-250.0,0.00013081,2]
[403170128,1769239762859,-151.0,0.00013081,2]
[403170129,1769239762869,-250.0,0.00013081,2]
[403170130,1769239762879,-151.0,0.00013081,2]
[403170131,1769239762892,-151.0,0.00013081,2]
[403170132,1769239762902,-151.0,0.00013081,2]
[403170133,1769239762911,-151.0,0.00013081,2]
[403170134,1769239762924,-151.0,0.00013081,2]
[403170135,1769239762934,-151.0,0.00013081,2]
[403170136,1769239762943,-151.0,0.00013081,2]
[403170137,1769239762956,-97.8591236,0.00013081,2]
[403170138,1769239763009,-53.1408764,0.00013081,2]
[403170139,1769239763019,-151.0,0.00013081,2]
[403170140,1769239763028,-92.5787596,0.00013081,2]
[403170141,1769239763083,-58.4212404,0.00013081,2]
[403170142,1769239763092,-151.0,0.00013081,2]
[403170143,1769239763102,-151.0,0.00013081,2]
[403170144,1769239763112,-151.0,0.00013081,2]
[403170145,1769239763122,-143.8655736,0.00013081,2]
[403170146,1769239763194,-7.1344264,0.00013081,2]
[403170147,1769239763257,-151.0,0.00013081,2]
[403170148,1769239763321,-151.0,0.00013081,2]
[403170149,1769239763443,-354.55510917,0.00013081,2]
[403170150,1769239763502,-500.0,0.00013081,2]
[403170151,1769239763561,-567.18943123,0.00013081,2]
[403170152,1769239763607,-232.95286695,0.00013081,2]
[403170153,1769239763671,-500.0,0.00013081,2]
[403170154,1769239763719,-500.0,0.00013081,2]
[403170155,1769239764170,-604.80160533,0.00013081,2]
[403170156,1769239764228,-500.0,0.00013081,2]
[403170157,1769239764349,-7.1344264,0.00013081,2]
[403170158,1769239764400,-151.0,0.00013081,2]
[403170159,1769239764467,-151.0,0.00013081,2]
[403170160,1769239764514,-9381.7411472,0.00013081,2]
[403170161,1769239764573,-10000.01,0.00013081,2]
[403170162,1769239764671,-10000.01,0.00013081,2]
[403170163,1769239764723,-10000.01,0.00013081,2]
[403170164,1769239764782,-10000.01,0.00013081,2]
[403170165,1769239764870,-10000.01,0.00013081,2]
[403170166,1769239764925,-10000.01,0.00013081,2]
[403170167,1769239764980,-10000.01,0.00013081,2]
[403170168,1769239770862,166.66,0.00011629,2]
[403170169,1769239770910,166.66,0.00011874,2]
[403170170,1769239786798,-166.66,0.00012118,2]
[403170171,1769239786825,-2.18600622,0.00012263,2]
[403170172,1769239790817,-258.55103498,0.00012263,2]
[403170173,1769239816041,-162.54389024,0.00012263,2]
[403170174,1769239816065,-132.30043922,0.00012263,2]
[403170187,1769239831829,-117.69956078,0.00012263,2]
[403170188,1769239831839,-166.66,0.00012363,2]
[403170189,1769239831849,-166.66,0.00012608,2]
[403170190,1769239831859,-166.66,0.00012853,2]
[403170191,1769239831868,-253.0,0.0001298,2]
[403170192,1769239831878,-208.2379712,0.0001298,2]
[403170193,1769239831890,-991.7620288,0.0001298,2]
[403170194,1769239831900,-300.0,0.0001298,2]
[403170195,1769239831910,-300.0,0.0001298,2]
[403170196,1769239831919,-13494.6051,0.00012981,2]
[403170197,1769239831928,-2500.0,0.00012981,2]
[403170198,1769239831941,-151.0,0.00013078,2]
[403170212,1769239832237,-644.89869677,0.00013078,2]
[403170216,1769239832274,-150.0,0.0001308,2]
[403170219,1769239832283,-104139.29924519,0.00013081,2]
[403170221,1769239832294,-7338.86718214,0.00013081,2]
[403170225,1769239832324,-2039.30209576,0.00013081,2]
[403170228,1769239832340,-48487.54552605,0.00013081,2]
[403170231,1769239832355,-1837.45735707,0.00013081,2]
[403170233,1769239832371,-410.18842419,0.00013081,2]
[403170235,1769239832382,-911.77284541,0.00013081,2]
[403170295,1769239837948,-162.0,0.00012171,2]
[403170296,1769239837958,-250.68307781,0.00013081,2]
[403170297,1769239837969,-12070.31789647,0.00013081,2]
[403170298,1769239837981,-563.94852852,0.00013081,2]
[403170299,1769239837992,-55201.02950163,0.00013081,2]
[403170300,1769239838002,-2000.0,0.00013081,2]
[403170301,1769239838011,-200.0,0.00013081,2]
[403170302,1769239838021,-213.11618431,0.00013081,2]
[403170303,1769239838030,-200.0,0.00013081,2]
[403170304,1769239838040,-285.35183979,0.00013085,2]
[403170305,1769239838050,-182.609,0.00013087,2]
[403170306,1769239838059,-52101.3719126,0.00013088,2]
[403170308,1769239838078,-10869.68645824,0.00013088,2]
[403170310,1769239838089,-348.01441186,0.00013088,2]
[403170312,1769239838103,-3811.00920727,0.00013088,2]
[403170319,1769239840054,-434.61552227,0.00013088,2]
[403170320,1769239840064,-374.10410906,0.00013088,2]
[403170321,1769239840077,-497.12974831,0.00013088,2]
[403170322,1769239840087,-1332.71525567,0.00013088,2]
[403170323,1769239840098,-814.99050741,0.00013088,2]
[403170328,1769239840818,-1.7e-07,0.00013088,2]
[403170329,1769239840840,-8313.30783142,0.00013088,2]
[403170330,1769239840850,-840.8243908,0.00013088,2]
[403170331,1769239840861,-1662.18612278,0.00013088,2]
[403170332,1769239840876,-4264.09911204,0.00013088,2]
[403170333,1769239840911,-394.07870975,0.00013088,2]
[403170347,1769239843967,-1.7082037,0.00013088,2]
[403170348,1769239843992,-602.0124,0.00013088,2]
[403170354,1769239845789,-6244.00000002,0.00013088,2]
[403170355,1769239846019,-433611.93756302,0.00013088,2]
[403170363,1769239943574,-282.1585255,0.00012647,2]
[403170364,1769239943598,-216.89381663,0.00012824,2]
[403170366,1769240040906,-281.05506125,0.00012759,2]
[403170367,1769240040929,-65.26470886,0.00012824,2]
[403170368,1769240040952,-300.0,0.00012887,2]
[403170369,1769240040980,-500.0,0.00012887,2]
[403170370,1769240041007,-500.0,0.00012887,2]
[403170371,1769240041033,-500.0,0.00012887,2]
[403170372,1769240041058,-500.0,0.00012887,2]
[403170373,1769240041084,-500.0,0.00012887,2]
[403170374,1769240041109,-500.0,0.00012887,2]
[403170375,1769240041135,-500.0,0.00012887,2]
[403170376,1769240041172,-500.0,0.00012887,2]
[403170377,1769240041200,-500.0,0.00012887,2]
[403170378,1769240041227,-245.06147465,0.00012887,2]
[403170379,1769240041255,-500.0,0.00012887,2]
[403170380,1769240041282,-500.0,0.00012887,2]
[403170381,1769240041311,-500.0,0.00012887,2]
[403170382,1769240041340,-500.0,0.00012887,2]
[403170383,1769240041366,-500.0,0.00012887,2]
[403170384,1769240041393,-500.0,0.00012887,2]
[403170385,1769240041420,-500.0,0.00012887,2]
[403170386,1769240041453,-500.0,0.00012887,2]
[403170387,1769240041478,-500.0,0.00012887,2]
[403170388,1769240041510,-500.0,0.00012887,2]
[403170389,1769240041538,-500.0,0.00012887,2]
[403170390,1769240041565,-500.0,0.00012887,2]
[403170391,1769240041589,-1200.0,0.00012887,2]
[403170392,1769240041614,-500.0,0.00012887,2]
[403170393,1769240041640,-500.0,0.00012887,2]
[403170394,1769240041666,-500.0,0.00012887,2]
[403170395,1769240041692,-500.0,0.00012887,2]
[403170396,1769240041718,-500.0,0.00012887,2]
[403170397,1769240041745,-500.0,0.00012887,2]
[403170398,1769240041772,-500.0,0.00012887,2]
[403170399,1769240041798,-500.0,0.00012887,2]
[403170400,1769240041825,-500.0,0.00012887,2]
[403170401,1769240041852,-500.0,0.00012887,2]
[403170402,1769240041880,-500.0,0.00012887,2]
[403170403,1769240041909,-500.0,0.00012887,2]
[403170404,1769240041937,-500.0,0.00012887,2]
[403170405,1769240041966,-500.0,0.00012887,2]
[403170406,1769240041996,-500.0,0.00012887,2]
[403170408,1769240042024,-500.0,0.00012887,2]
[403170409,1769240042053,-500.0,0.00012887,2]
[403170410,1769240042084,-500.0,0.00012887,2]
[403170411,1769240042112,-500.0,0.00012887,2]
[403170412,1769240042140,-500.0,0.00012887,2]
[403170413,1769240042168,-500.0,0.00012887,2]
[403170414,1769240042196,-500.0,0.00012887,2]
[403170415,1769240042224,-500.0,0.00012887,2]
[403170416,1769240042253,-500.0,0.00012887,2]
[403170417,1769240042281,-500.0,0.00012887,2]
[403170418,1769240042309,-245.06147464,0.00012887,2]
[403170419,1769240042337,-500.0,0.00012887,2]
[403170420,1769240042366,-500.0,0.00012887,2]
[403170421,1769240042394,-500.0,0.00012887,2]
[403170422,1769240042421,-500.0,0.00012887,2]
[403170423,1769240042449,-500.0,0.00012887,2]
[403170424,1769240042478,-500.0,0.00012887,2]
[403170425,1769240042505,-500.0,0.00012887,2]
[403170426,1769240042819,-500.0,0.00012887,2]
[403170427,1769240042848,-500.0,0.00012887,2]
[403170428,1769240042874,-500.0,0.00012887,2]
[403170429,1769240042897,-9342.09587735,0.00012888,2]
[403170430,1769240042920,-5726.23342835,0.00012888,2]
[403170431,1769240042943,-288.47018936,0.00012888,2]
[403170432,1769240042966,-375.8377,0.00012959,2]
[403170433,1769240042988,-151.0,0.00012985,2]
[403170434,1769240043010,-150.0,0.00012987,2]
[403170435,1769240043032,-505.26055753,0.00012987,2]
[403170436,1769240043055,-193.0477772,0.00012987,2]
[403170437,1769240043083,-692931.61175081,0.00012988,2]
[403170438,1769240055364,200.0,0.000129,4]
[403170441,1769240120752,-189.93713,0.00012823,2]
[403170442,1769240120816,-1393.7793976,0.00012888,2]
[403170443,1769240120881,-1200.0,0.00012987,2]
[403170444,1769240124867,500.0,0.00012887,2]
[403170445,1769240125179,500.0,0.00012887,2]